[Event "Goteborg Open 2024"]
[Site "Goteborgs Schackcentrum, Vegatan 20, Gothenburg, Sweden"]
[Date "2024.08.03"]
[Round "5.9"]
[White "Borin, Jesper"]
[Black "Evertsson, David"]
[Result "1/2-1/2"]
[TimeControl "15 minutes + 5 seconds per move from move one (Round 1 - 4) / 90 minutes + 30 seconds per move from move one (Round 5 - 8)"]
[WhiteFideId "1771337"]
[BlackFideId "1777424"]
[WhiteElo "1905"]
[BlackElo "1642"]

1. e4 {[%clk 01:30:56]} {[%emt 00:00:02]} c5 {[%clk 01:30:55]} {[%emt
00:00:06]} 2. Nf3 {[%clk 01:31:24]} {[%emt 00:00:01]} d6 {[%clk 01:31:19]}
{[%emt 00:00:08]} 3. Bb5+ {[%clk 01:31:51]} {[%emt 00:00:03]} Nd7 {[%clk
01:30:54]} {[%emt 00:00:54]} 4. a4 {[%clk 01:32:19]} {[%emt 00:00:03]} a6
{[%clk 01:31:06]} {[%emt 00:00:17]} 5. Be2 {[%clk 01:32:45]} {[%emt 00:00:04]}
Ngf6 {[%clk 01:30:53]} {[%emt 00:00:44]} 6. Nc3 {[%clk 01:33:13]} {[%emt
00:00:02]} e5 {[%clk 01:30:04]} {[%emt 00:01:18]} 7. O-O {[%clk 01:30:45]}
{[%emt 00:02:57]} Be7 {[%clk 01:30:27]} {[%emt 00:00:08]} 8. d3 {[%clk
01:27:11]} {[%emt 00:04:04]} O-O {[%clk 01:30:32]} {[%emt 00:00:24]} 9. a5
{[%clk 01:26:55]} {[%emt 00:00:45]} Re8 {[%clk 01:29:41]} {[%emt 00:01:23]} 10.
Nd2 {[%clk 01:20:36]} {[%emt 00:06:50]} Nf8 {[%clk 01:26:53]} {[%emt 00:03:17]}
11. Nc4 {[%clk 01:18:38]} {[%emt 00:02:28]} Ng6 {[%clk 01:26:41]} {[%emt
00:00:42]} 12. Nb6 {[%clk 01:18:28]} {[%emt 00:00:40]} Rb8 {[%clk 01:25:45]}
{[%emt 00:01:25]} 13. Nxc8 {[%clk 01:11:38]} {[%emt 00:07:21]} Rxc8 {[%clk
01:23:54]} {[%emt 00:02:22]} 14. g3 {[%clk 01:11:57]} {[%emt 00:00:10]} Bf8
{[%clk 01:09:17]} {[%emt 00:15:07]} 15. b3 {[%clk 01:05:30]} {[%emt 00:06:57]}
Ne7 {[%clk 01:07:38]} {[%emt 00:02:09]} 16. Bg5 {[%clk 00:53:57]} {[%emt
00:12:03]} Nc6 {[%clk 01:04:48]} {[%emt 00:03:20]} 17. Nd5 {[%clk 00:50:54]}
{[%emt 00:03:33]} Be7 {[%clk 01:02:52]} {[%emt 00:02:26]} 18. Nb6 {[%clk
00:46:39]} {[%emt 00:04:45]} Rb8 {[%clk 01:01:06]} {[%emt 00:02:17]} 19. Bd2
{[%clk 00:42:10]} {[%emt 00:04:58]} Bf8 {[%clk 00:57:27]} {[%emt 00:04:09]} 20.
Bf3 {[%clk 00:42:00]} {[%emt 00:00:40]} g6 {[%clk 00:57:37]} {[%emt 00:00:20]}
21. Bg2 {[%clk 00:40:57]} {[%emt 00:01:34]} Bg7 {[%clk 00:58:00]} {[%emt
00:00:06]} 22. Bc3 {[%clk 00:40:15]} {[%emt 00:01:12]} Nd7 {[%clk 00:57:18]}
{[%emt 00:01:12]} 23. Nc4 {[%clk 00:40:31]} {[%emt 00:00:14]} Qe7 {[%clk
00:54:03]} {[%emt 00:03:45]} 24. Qd2 {[%clk 00:40:02]} {[%emt 00:00:59]} Nd4
{[%clk 00:46:57]} {[%emt 00:07:36]} 25. Bxd4 {[%clk 00:39:24]} {[%emt
00:01:08]} cxd4 {[%clk 00:46:30]} {[%emt 00:00:56]} 26. f4 {[%clk 00:36:18]}
{[%emt 00:03:36]} f6 {[%clk 00:44:53]} {[%emt 00:02:08]} 27. Qf2 {[%clk
00:35:33]} {[%emt 00:01:14]} Rbc8 {[%clk 00:44:17]} {[%emt 00:01:07]} 28. Bh3
{[%clk 00:35:45]} {[%emt 00:00:19]} Bh6 {[%clk 00:43:26]} {[%emt 00:01:20]} 29.
Bxd7 {[%clk 00:35:29]} {[%emt 00:00:46]} Qxd7 {[%clk 00:43:38]} {[%emt
00:00:18]} 30. Nb6 {[%clk 00:35:37]} {[%emt 00:00:22]} Qc7 {[%clk 00:42:06]}
{[%emt 00:02:02]} 31. Nxc8 {[%clk 00:36:02]} {[%emt 00:00:06]} Rxc8 {[%clk
00:42:31]} {[%emt 00:00:04]} 32. Ra2 {[%clk 00:32:54]} {[%emt 00:03:38]} Qe7
{[%clk 00:30:21]} {[%emt 00:12:39]} 33. Ra4 {[%clk 00:29:51]} {[%emt 00:03:35]}
Rc5 {[%clk 00:28:27]} {[%emt 00:02:24]} 34. Rfa1 {[%clk 00:26:08]} {[%emt
00:04:12]} Qc7 {[%clk 00:27:53]} {[%emt 00:01:04]} 35. Rc4 {[%clk 00:26:23]}
{[%emt 00:00:16]} Kg7 {[%clk 00:25:04]} {[%emt 00:03:18]} 36. Kg2 {[%clk
00:26:33]} {[%emt 00:00:21]} Qc6 {[%clk 00:24:00]} {[%emt 00:01:32]} 37. Qf3
{[%clk 00:22:21]} {[%emt 00:04:43]} Qc7 {[%clk 00:22:50]} {[%emt 00:01:39]} 38.
Rf1 {[%clk 00:21:49]} {[%emt 00:01:03]} Qe7 {[%clk 00:21:09]} {[%emt 00:02:11]}
39. fxe5 {[%clk 00:20:18]} {[%emt 00:02:02]} fxe5 {[%clk 00:19:50]} {[%emt
00:01:47]} 40. Rxc5 {[%clk 00:15:48]} {[%emt 00:05:01]} dxc5 {[%clk 00:20:11]}
{[%emt 00:00:08]} 41. Qg4 {[%clk 00:15:42]} {[%emt 00:00:36]} Bd2 {[%clk
00:18:21]} {[%emt 00:02:20]} 42. h4 {[%clk 00:13:51]} {[%emt 00:02:22]} Bxa5
{[%clk 00:17:45]} {[%emt 00:01:06]} 43. Qg5 {[%clk 00:14:12]} {[%emt 00:00:09]}
Qxg5 {[%clk 00:16:10]} {[%emt 00:02:05]} 44. hxg5 {[%clk 00:14:40]} {[%emt
00:00:02]} Bd8 {[%clk 00:16:20]} {[%emt 00:00:19]} 45. Ra1 {[%clk 00:14:24]}
{[%emt 00:00:47]} Bxg5 {[%clk 00:16:34]} {[%emt 00:00:16]} 46. Ra5 {[%clk
00:14:48]} {[%emt 00:00:06]} Be7 {[%clk 00:16:45]} {[%emt 00:00:18]} 47. b4
{[%clk 00:15:17]} {[%emt 00:00:02]} b6 {[%clk 00:14:09]} {[%emt 00:03:06]} 48.
Rxa6 {[%clk 00:15:27]} {[%emt 00:00:20]} cxb4 {[%clk 00:13:05]} {[%emt
00:01:34]} 49. Rxb6 {[%clk 00:15:46]} {[%emt 00:00:11]} Kf7 {[%clk 00:13:08]}
{[%emt 00:00:26]} 50. Kf3 {[%clk 00:15:39]} {[%emt 00:00:37]} h5 {[%clk
00:13:16]} {[%emt 00:00:23]} 51. Ke2 {[%clk 00:14:47]} {[%emt 00:01:21]} Bc5
{[%clk 00:12:38]} {[%emt 00:01:08]} 52. Rc6 {[%clk 00:14:24]} {[%emt 00:00:54]}
Be7 {[%clk 00:12:35]} {[%emt 00:00:34]} 53. Kf3 {[%clk 00:12:31]} {[%emt
00:02:23]} Bf6 {[%clk 00:11:58]} {[%emt 00:01:06]} 54. Kg2 {[%clk 00:12:31]}
{[%emt 00:00:30]} Be7 {[%clk 00:12:12]} {[%emt 00:00:16]} 55. Kh3 {[%clk
00:12:57]} {[%emt 00:00:04]} Bf6 {[%clk 00:12:35]} {[%emt 00:00:07]} 56. Rc5
{[%clk 00:13:03]} {[%emt 00:00:23]} Ke6 {[%clk 00:12:40]} {[%emt 00:00:25]} 57.
g4 {[%clk 00:12:28]} {[%emt 00:01:07]} h4 {[%clk 00:12:56]} {[%emt 00:00:13]}
58. Rb5 {[%clk 00:12:00]} {[%emt 00:00:59]} Be7 {[%clk 00:13:16]} {[%emt
00:00:09]} 59. Rb6+ {[%clk 00:11:50]} {[%emt 00:00:40]} Kf7 {[%clk 00:13:22]}
{[%emt 00:00:24]} 60. g5 {[%clk 00:11:57]} {[%emt 00:00:23]} Bxg5 {[%clk
00:13:04]} {[%emt 00:00:47]} 61. Rxb4 {[%clk 00:12:25]} {[%emt 00:00:03]} Be7
{[%clk 00:11:55]} {[%emt 00:01:39]} 62. Rb5 {[%clk 00:12:19]} {[%emt 00:00:37]}
Ke6 {[%clk 00:12:08]} {[%emt 00:00:16]} 63. Rb6+ {[%clk 00:12:45]} {[%emt
00:00:05]} Kf7 {[%clk 00:12:31]} {[%emt 00:00:05]} 64. Kg4 {[%clk 00:12:58]}
{[%emt 00:00:18]} Bf6 {[%clk 00:12:00]} {[%emt 00:01:00]} 65. Rb7+ {[%clk
00:11:17]} {[%emt 00:02:12]} Be7 {[%clk 00:12:04]} {[%emt 00:00:27]} 66. Rc7
{[%clk 00:11:30]} {[%emt 00:00:16]} Ke6 {[%clk 00:11:28]} {[%emt 00:01:06]} 67.
Rc6+ {[%clk 00:11:55]} {[%emt 00:00:05]} Kf7 {[%clk 00:11:49]} {[%emt
00:00:09]} 68. c3 {[%clk 00:11:41]} {[%emt 00:00:44]} dxc3 {[%clk 00:11:56]}
{[%emt 00:00:23]} 69. Rxc3 {[%clk 00:12:09]} {[%emt 00:00:03]} Ke6 {[%clk
00:12:06]} {[%emt 00:00:20]} 70. Rc6+ {[%clk 00:12:08]} {[%emt 00:00:31]} Kf7
{[%clk 00:12:24]} {[%emt 00:00:11]} 71. Ra6 {[%clk 00:12:31]} {[%emt 00:00:07]}
Bf6 {[%clk 00:12:16]} {[%emt 00:00:38]} 72. Rd6 {[%clk 00:12:22]} {[%emt
00:00:38]} Ke7 {[%clk 00:12:17]} {[%emt 00:00:30]} 73. Rb6 {[%clk 00:11:26]}
{[%emt 00:01:26]} Kf7 {[%clk 00:12:35]} {[%emt 00:00:11]} 74. Rb7+ {[%clk
00:11:45]} {[%emt 00:00:13]} Be7 {[%clk 00:12:55]} {[%emt 00:00:09]} 75. Kf3
{[%clk 00:12:02]} {[%emt 00:00:13]} Ke6 {[%clk 00:12:39]} {[%emt 00:00:46]} 76.
Rb6+ {[%clk 00:12:12]} {[%emt 00:00:20]} Kf7 {[%clk 00:13:02]} {[%emt
00:00:06]} 77. Rc6 {[%clk 00:12:41]} {[%emt 00:00:02]} Bf6 {[%clk 00:13:08]}
{[%emt 00:00:24]} 78. Ke3 {[%clk 00:12:48]} {[%emt 00:00:22]} Be7 {[%clk
00:12:35]} {[%emt 00:01:03]} 79. d4 {[%clk 00:12:46]} {[%emt 00:00:33]} exd4+
{[%clk 00:12:54]} {[%emt 00:00:10]} 80. Kxd4 {[%clk 00:13:14]} {[%emt
00:00:04]} g5 {[%clk 00:12:49]} {[%emt 00:00:34]} 81. e5 {[%clk 00:10:04]}
{[%emt 00:03:40]} g4 {[%clk 00:12:50]} {[%emt 00:00:28]} 82. Ke4 {[%clk
00:09:01]} {[%emt 00:01:34]} g3 {[%clk 00:12:32]} {[%emt 00:00:48]} 83. Kf3
{[%clk 00:08:25]} {[%emt 00:01:05]} Bd8 {[%clk 00:12:40]} {[%emt 00:00:22]} 84.
Kg2 {[%clk 00:07:51]} {[%emt 00:01:05]} Be7 {[%clk 00:12:28]} {[%emt 00:00:41]}
85. Kh3 {[%clk 00:08:16]} {[%emt 00:00:05]} Kg7 {[%clk 00:11:37]} {[%emt
00:01:21]} 86. Rc4 {[%clk 00:07:26]} {[%emt 00:01:22]} Kf7 {[%clk 00:11:47]}
{[%emt 00:00:19]} 87. Rc6 {[%clk 00:07:22]} {[%emt 00:00:35]} Kg7 {[%clk
00:12:05]} {[%emt 00:00:12]} 88. Re6 {[%clk 00:07:50]} {[%emt 00:00:01]} Kf7
{[%clk 00:12:18]} {[%emt 00:00:17]} 89. Rh6 {[%clk 00:08:07]} {[%emt 00:00:13]}
Kg7 {[%clk 00:12:15]} {[%emt 00:00:32]} 1/2-1/2

[Event "Goteborg Open 2024"]
[Site "Goteborgs Schackcentrum, Vegatan 20, Gothenburg, Sweden"]
[Date "2024.08.03"]
[Round "5.10"]
[White "Lindholm, Marcus"]
[Black "Lennerstad, Allan"]
[Result "0-1"]
[TimeControl "15 minutes + 5 seconds per move from move one (Round 1 - 4) / 90 minutes + 30 seconds per move from move one (Round 5 - 8)"]
[WhiteFideId "1743473"]
[BlackFideId "1723774"]
[WhiteElo "1851"]
[BlackElo "1950"]

1. d4 {[%clk 01:30:57]} {[%emt 00:00:02]} Nf6 {[%clk 01:30:55]} {[%emt
00:00:06]} 2. Bg5 {[%clk 01:31:16]} {[%emt 00:00:11]} g6 {[%clk 01:29:53]}
{[%emt 00:01:31]} 3. Bxf6 {[%clk 01:31:39]} {[%emt 00:00:08]} exf6 {[%clk
01:30:17]} {[%emt 00:00:05]} 4. e4 {[%clk 01:32:00]} {[%emt 00:00:09]} Bg7
{[%clk 01:28:02]} {[%emt 00:02:46]} 5. Nd2 {[%clk 01:32:03]} {[%emt 00:00:27]}
O-O {[%clk 01:27:44]} {[%emt 00:00:48]} 6. Bd3 {[%clk 01:32:02]} {[%emt
00:00:31]} d5 {[%clk 01:26:35]} {[%emt 00:01:38]} 7. c3 {[%emt 00:05:01]} dxe4
{[%clk 01:23:05]} {[%emt 00:02:02]} 8. Bxe4 {[%clk 01:22:08]} {[%emt 00:07:52]}
Re8 {[%clk 01:21:07]} {[%emt 00:02:27]} 9. Ne2 {[%clk 01:22:28]} {[%emt
00:00:11]} f5 {[%clk 01:15:53]} {[%emt 00:05:44]} 10. Bd3 {[%clk 01:21:55]}
{[%emt 00:01:03]} c5 {[%clk 01:12:55]} {[%emt 00:03:28]} 11. Bb5 {[%clk
01:20:03]} {[%emt 00:02:22]} Bd7 {[%clk 01:13:08]} {[%emt 00:00:17]} 12. Bxd7
{[%clk 01:12:57]} {[%emt 00:07:36]} Qxd7 {[%clk 01:12:20]} {[%emt 00:01:18]} 13.
dxc5 {[%clk 01:09:43]} {[%emt 00:03:44]} Qe7 {[%clk 01:11:58]} {[%emt
00:00:52]} 14. Nc4 {[%clk 01:08:06]} {[%emt 00:02:06]} Na6 {[%clk 01:02:03]}
{[%emt 00:10:26]} 15. Ne3 {[%clk 01:01:30]} {[%emt 00:07:06]} Bh6 {[%clk
00:58:32]} {[%emt 00:04:01]} 16. b4 {[%clk 00:45:30]} {[%emt 00:16:29]} Bxe3
{[%clk 00:48:02]} {[%emt 00:11:01]} 17. fxe3 {[%clk 00:44:34]} {[%emt
00:01:26]} Qxe3 {[%clk 00:47:44]} {[%emt 00:00:49]} 18. Qd2 {[%clk 00:42:46]}
{[%emt 00:02:17]} Qe4 {[%clk 00:46:37]} {[%emt 00:01:37]} 19. Kf2 {[%clk
00:42:26]} {[%emt 00:00:50]} Rad8 {[%clk 00:46:29]} {[%emt 00:00:38]} 20. Nd4
{[%clk 00:42:45]} {[%emt 00:00:11]} Nxb4 {[%clk 00:42:14]} {[%emt 00:04:44]} 21.
Rad1 {[%clk 00:39:53]} {[%emt 00:03:23]} Nd5 {[%clk 00:38:58]} {[%emt
00:03:46]} 22. Rhe1 {[%clk 00:38:28]} {[%emt 00:01:54]} Qh4+ {[%clk 00:36:59]}
{[%emt 00:02:30]} 23. Kg1 {[%clk 00:38:48]} {[%emt 00:00:10]} Rxe1+ {[%clk
00:36:21]} {[%emt 00:01:08]} 24. Rxe1 {[%clk 00:37:40]} {[%emt 00:01:37]} Qf6
{[%clk 00:33:27]} {[%emt 00:03:25]} 25. Rd1 {[%clk 00:34:11]} {[%emt 00:03:58]}
Nc7 {[%clk 00:32:23]} {[%emt 00:01:34]} 26. Qb2 {[%clk 00:31:53]} {[%emt
00:02:48]} b6 {[%clk 00:23:11]} {[%emt 00:09:42]} 27. cxb6 {[%clk 00:20:30]}
{[%emt 00:11:53]} Qxb6 {[%clk 00:21:57]} {[%emt 00:01:45]} 28. Qxb6 {[%clk
00:20:12]} {[%emt 00:00:47]} axb6 {[%clk 00:21:10]} {[%emt 00:01:17]} 29. Rb1
{[%clk 00:20:19]} {[%emt 00:00:23]} Nd5 {[%clk 00:18:53]} {[%emt 00:02:48]} 30.
Ne2 {[%clk 00:18:25]} {[%emt 00:02:23]} Ra8 {[%clk 00:17:03]} {[%emt 00:02:20]}
31. Rb2 {[%clk 00:12:53]} {[%emt 00:06:02]} Ra3 {[%clk 00:14:36]} {[%emt
00:02:58]} 32. h3 {[%clk 00:13:07]} {[%emt 00:00:16]} Nxc3 {[%clk 00:13:01]}
{[%emt 00:02:05]} 33. Nxc3 {[%clk 00:13:26]} {[%emt 00:00:10]} Rxc3 {[%clk
00:13:24]} {[%emt 00:00:07]} 34. Rxb6 {[%clk 00:13:52]} {[%emt 00:00:04]} Ra3
{[%clk 00:13:19]} {[%emt 00:00:36]} 35. Rb2 {[%clk 00:13:34]} {[%emt 00:00:48]}
Kg7 {[%clk 00:13:02]} {[%emt 00:00:46]} 36. Kf2 {[%clk 00:11:59]} {[%emt
00:02:05]} g5 {[%clk 00:12:57]} {[%emt 00:00:36]} 37. Ke1 {[%clk 00:11:04]}
{[%emt 00:01:25]} h5 {[%clk 00:12:21]} {[%emt 00:01:06]} 38. Kf1 {[%clk
00:10:56]} {[%emt 00:00:38]} h4 {[%clk 00:11:19]} {[%emt 00:01:32]} 39. Kg1
{[%clk 00:10:26]} {[%emt 00:00:59]} Kg6 {[%clk 00:11:15]} {[%emt 00:00:34]} 40.
Kh2 {[%clk 00:10:15]} {[%emt 00:00:41]} f6 {[%clk 00:08:25]} {[%emt 00:03:22]}
41. Rc2 {[%clk 00:08:20]} {[%emt 00:02:24]} g4 {[%clk 00:07:29]} {[%emt
00:01:26]} 42. hxg4 {[%clk 00:07:21]} {[%emt 00:01:28]} fxg4 {[%clk 00:07:52]}
{[%emt 00:00:07]} 43. Rb2 {[%clk 00:07:11]} {[%emt 00:00:40]} Kg5 {[%clk
00:07:32]} {[%emt 00:00:51]} 44. Rb5+ {[%clk 00:06:37]} {[%emt 00:01:03]} f5
{[%clk 00:07:23]} {[%emt 00:00:40]} 45. Rb2 {[%clk 00:06:20]} {[%emt 00:00:47]}
Rc3 {[%clk 00:05:33]} {[%emt 00:02:20]} 46. Rd2 g3+ {[%clk 00:05:33]} 0-1

[Event "Goteborg Open 2024"]
[Site "Goteborgs Schackcentrum, Vegatan 20, Gothenburg, Sweden"]
[Date "2024.08.03"]
[Round "5.11"]
[White "Harila, Per"]
[Black "Gallardo, Guillermo"]
[Result "1-0"]
[TimeControl "15 minutes + 5 seconds per move from move one (Round 1 - 4) / 90 minutes + 30 seconds per move from move one (Round 5 - 8)"]
[WhiteFideId "1707248"]
[BlackFideId "1773488"]
[WhiteElo "1947"]
[BlackElo "1822"]

1. c4 {[%clk 01:30:55]} {[%emt 00:00:04]} c5 {[%clk 01:30:52]} {[%emt
00:00:08]} 2. g3 {[%clk 01:31:19]} {[%emt 00:00:06]} g6 {[%clk 01:31:15]}
{[%emt 00:00:08]} 3. Bg2 {[%clk 01:31:44]} {[%emt 00:00:05]} Bg7 {[%clk
01:31:38]} {[%emt 00:00:08]} 4. Nc3 {[%clk 01:32:09]} {[%emt 00:00:03]} Nc6
{[%clk 01:31:29]} {[%emt 00:00:39]} 5. d3 {[%clk 01:32:32]} {[%emt 00:00:07]}
d6 {[%clk 01:30:15]} {[%emt 00:01:45]} 6. e4 {[%clk 01:32:40]} {[%emt
00:00:22]} e6 {[%clk 01:29:48]} {[%emt 00:00:57]} 7. Nge2 {[%clk 01:33:00]}
{[%emt 00:00:09]} Nge7 {[%clk 01:30:09]} {[%emt 00:00:09]} 8. O-O {[%clk
01:33:16]} {[%emt 00:00:14]} O-O {[%clk 01:30:25]} {[%emt 00:00:14]} 9. f4
{[%clk 01:33:01]} {[%emt 00:00:46]} Nd4 {[%clk 01:24:19]} {[%emt 00:06:37]} 10.
Nxd4 {[%clk 01:31:32]} {[%emt 00:01:58]} Bxd4+ {[%clk 01:24:35]} {[%emt
00:00:14]} 11. Kh1 {[%clk 01:31:55]} {[%emt 00:00:06]} Nc6 {[%clk 01:20:09]}
{[%emt 00:04:56]} 12. Ne2 {[%clk 01:29:50]} {[%emt 00:02:34]} Bg7 {[%clk
01:19:23]} {[%emt 00:01:17]} 13. Rb1 {[%clk 01:29:04]} {[%emt 00:01:16]} Rb8
{[%clk 01:19:13]} {[%emt 00:00:40]} 14. Be3 {[%clk 01:29:23]} {[%emt 00:00:10]}
Qe7 {[%clk 01:13:35]} {[%emt 00:06:09]} 15. d4 {[%clk 01:27:47]} {[%emt
00:02:06]} cxd4 {[%clk 01:08:47]} {[%emt 00:05:19]} 16. Nxd4 {[%clk 01:28:12]}
{[%emt 00:00:04]} Nxd4 {[%clk 01:08:44]} {[%emt 00:00:33]} 17. Bxd4 {[%clk
01:28:35]} {[%emt 00:00:05]} e5 {[%clk 01:06:32]} {[%emt 00:02:45]} 18. Bc3
{[%clk 01:28:05]} {[%emt 00:01:00]} Be6 {[%clk 00:58:51]} {[%emt 00:08:10]} 19.
Qd3 {[%clk 01:28:20]} {[%emt 00:00:14]} Qc7 {[%clk 00:56:46]} {[%emt 00:02:36]}
20. b3 {[%clk 01:28:30]} {[%emt 00:00:22]} exf4 {[%clk 00:52:03]} {[%emt
00:05:12]} 21. Bxg7 {[%clk 01:28:35]} {[%emt 00:00:25]} Kxg7 {[%clk 00:51:14]}
{[%emt 00:01:18]} 22. gxf4 {[%clk 01:28:56]} {[%emt 00:00:10]} f5 {[%clk
00:46:09]} {[%emt 00:05:35]} 23. Qd4+ {[%clk 01:28:36]} {[%emt 00:00:48]} Kg8
{[%clk 00:44:26]} {[%emt 00:02:14]} 24. Rbd1 {[%clk 01:28:29]} {[%emt
00:00:37]} Rbd8 {[%clk 00:40:41]} {[%emt 00:04:15]} 25. Rd2 {[%clk 01:26:42]}
{[%emt 00:02:17]} Qc5 {[%clk 00:35:15]} {[%emt 00:05:56]} 26. exf5 {[%clk
01:24:19]} {[%emt 00:02:54]} Bxf5 {[%clk 00:28:42]} {[%emt 00:07:03]} 27. Bd5+
{[%clk 01:24:33]} 1-0

[Event "Goteborg Open 2024"]
[Site "Goteborgs Schackcentrum, Vegatan 20, Gothenburg, Sweden"]
[Date "2024.08.03"]
[Round "5.12"]
[White "Fransson, Lennart"]
[Black "Thern, Alfred"]
[Result "1/2-1/2"]
[TimeControl "15 minutes + 5 seconds per move from move one (Round 1 - 4) / 90 minutes + 30 seconds per move from move one (Round 5 - 8)"]
[WhiteFideId "1706756"]
[BlackFideId "1775227"]
[WhiteElo "1926"]
[BlackElo "1729"]

1. e4 {[%clk 01:30:42]} {[%emt 00:00:18]} c5 {[%clk 01:30:44]} {[%emt
00:00:17]} 2. d4 {[%clk 01:31:03]} {[%emt 00:00:08]} cxd4 {[%clk 01:30:10]}
{[%emt 00:01:05]} 3. c3 {[%clk 01:31:07]} {[%emt 00:00:25]} Nf6 {[%clk
01:29:31]} {[%emt 00:01:09]} 4. e5 {[%clk 01:31:03]} {[%emt 00:00:33]} Nd5
{[%clk 01:29:57]} {[%emt 00:00:04]} 5. Nf3 {[%clk 01:30:45]} {[%emt 00:00:48]}
Nc6 {[%clk 01:29:00]} {[%emt 00:01:28]} 6. Bc4 {[%clk 01:28:57]} {[%emt
00:02:18]} Nb6 {[%clk 01:27:30]} {[%emt 00:02:00]} 7. Bb3 {[%clk 01:29:08]}
{[%emt 00:00:19]} d5 {[%clk 01:25:33]} {[%emt 00:02:27]} 8. exd6 {[%clk
01:29:04]} {[%emt 00:00:33]} Qxd6 {[%clk 01:25:50]} {[%emt 00:00:13]} 9. O-O
{[%clk 01:27:39]} {[%emt 00:01:55]} Be6 {[%clk 01:19:25]} {[%emt 00:06:56]} 10.
Bxe6 {[%clk 01:26:45]} {[%emt 00:01:24]} Qxe6 {[%clk 01:19:03]} {[%emt
00:00:53]} 11. Re1 {[%clk 01:25:55]} {[%emt 00:01:16]} Qd7 {[%clk 01:15:49]}
{[%emt 00:03:48]} 12. cxd4 {[%clk 01:24:09]} {[%emt 00:02:14]} Rd8 {[%clk
01:11:08]} {[%emt 00:05:11]} 13. Nc3 {[%clk 01:22:07]} {[%emt 00:02:32]} e6
{[%clk 01:05:54]} {[%emt 00:05:45]} 14. Bf4 {[%clk 01:13:05]} {[%emt 00:09:31]}
Be7 {[%clk 01:00:39]} {[%emt 00:05:45]} 15. Qb3 {[%clk 01:07:43]} {[%emt
00:05:51]} O-O {[%clk 00:59:10]} {[%emt 00:02:00]} 16. Rad1 {[%clk 01:07:57]}
{[%emt 00:00:15]} Rfe8 {[%clk 00:44:06]} {[%emt 00:15:36]} 17. Ne5 {[%clk
01:01:10]} {[%emt 00:07:17]} Qc8 {[%clk 00:38:21]} {[%emt 00:06:15]} 18. d5
{[%clk 00:59:24]} {[%emt 00:02:14]} Nxe5 {[%clk 00:35:27]} {[%emt 00:03:25]} 19.
Bxe5 {[%clk 00:59:25]} {[%emt 00:00:29]} exd5 {[%clk 00:33:22]} {[%emt
00:02:35]} 20. Nxd5 {[%clk 00:57:09]} {[%emt 00:02:45]} Nxd5 {[%clk 00:32:57]}
{[%emt 00:00:57]} 21. Rxd5 {[%clk 00:57:35]} {[%emt 00:00:03]} Rxd5 {[%clk
00:31:54]} {[%emt 00:01:34]} 22. Qxd5 {[%clk 00:58:02]} {[%emt 00:00:02]} Bf6
{[%clk 00:29:26]} {[%emt 00:02:59]} 23. f4 {[%emt 00:03:28]} Qc7 {[%emt
00:00:13]} 24. Qd1 {[%emt 00:00:01]} 1/2-1/2